fUST/lending_fUST_20241104
["ID","MTS","AMOUNT","RATE_DAILY","PERIOD"]
[341241490,1730717432379,-2191.02187018,0.00022168,2]
[341241491,1730717432389,-2191.02187018,0.00022168,2]
[341241492,1730717432398,-2191.02187018,0.00022168,2]
[341241493,1730717432409,-2191.02187018,0.00022168,2]
[341241494,1730717432419,-2191.02187018,0.00022168,2]
[341241495,1730717432428,-2191.02187018,0.00022168,2]
[341241496,1730717432439,-2191.02187018,0.00022168,2]
[341241497,1730717432448,-2191.02187018,0.00022168,2]
[341241498,1730717432457,-2191.02187018,0.00022168,2]
[341241499,1730717432467,-2191.02187018,0.00022168,2]
[341241500,1730717432477,-2191.02187018,0.00022168,2]
[341241501,1730717432487,-2191.02187018,0.00022168,2]
[341241502,1730717432496,-2191.02187018,0.00022168,2]
[341241503,1730717432506,-2191.02187018,0.00022168,2]
[341241504,1730717432516,-2191.02187018,0.00022168,2]
[341241505,1730717432525,-742.69338379,0.00022168,2]
[341241538,1730717438697,-131.25575665,0.00022167,2]
[341241539,1730717438761,-304.08005634,0.00022167,2]
[341241540,1730717438774,-415.24933266,0.00022167,2]
[341241566,1730717568709,163.978673,0.00013973,2]
[341241567,1730717625692,194.496469,0.00023836,120]
[341241568,1730717837913,17828.7055656,0.0002016,2]
[341241569,1730717841227,3000.0,0.00020163,2]
[341241570,1730717868694,168.858451,0.0002016,2]
[341241571,1730718002077,199.946948,0.0001984,2]
[341241572,1730718008393,24900.0,0.00020114,2]
[341241573,1730718097616,506.950413,0.00020108,2]
[341241574,1730718101671,158.100637,0.00013973,2]
[341241576,1730718368320,150.0,0.0002,2]
[341241577,1730718369831,150.0,0.00017,2]
[341241578,1730718370677,150.0,0.00013,2]
[341241579,1730718371008,77.62640685,0.0001,2]
[341241580,1730718371046,72.37359315,0.0001,2]
[341241581,1730718374634,150.0,0.00017,30]
[341241582,1730718377159,150.0,0.00013,30]
[341241583,1730718409898,3000.0,0.00020123,2]
[341241584,1730718420845,168.8584521,0.00020123,2]
[341241585,1730718437397,-158.100637,0.00020447,2]
[341241586,1730718437420,-506.950413,0.00020793,2]
[341241587,1730718437442,-647.68117187,0.00021062,2]
[341241588,1730718437464,-255.9584487,0.00021118,2]
[341241589,1730718437485,-157.17,0.00021153,2]
[341241590,1730718437506,-300.0,0.00021159,2]
[341241591,1730718437527,-300.0,0.00021159,2]
[341241592,1730718437551,-304.73506909,0.0002116,2]
[341241593,1730718437575,-774.96222103,0.0002116,2]
[341241594,1730718437596,-774.96222103,0.0002116,2]
[341241595,1730718437618,-774.96222103,0.0002116,2]
[341241596,1730718437644,-774.96222103,0.0002116,2]
[341241597,1730718437664,-774.96222103,0.0002116,2]
[341241598,1730718437685,-774.96222103,0.0002116,2]
[341241599,1730718437705,-774.96222103,0.0002116,2]
[341241600,1730718437726,-774.96222103,0.0002116,2]
[341241601,1730718437844,-774.96222103,0.0002116,2]
[341241602,1730718437866,-340.78638522,0.0002116,2]
[341241603,1730718438140,-434.17583581,0.0002116,2]
[341241604,1730718438178,-386.70297239,0.0002116,2]
[341241605,1730718441162,-388.25924864,0.0002116,2]
[341241606,1730718441183,-774.96222103,0.0002116,2]
[341241607,1730718441204,-774.96222103,0.0002116,2]
[341241608,1730718441225,-774.96222103,0.0002116,2]
[341241609,1730718441247,-774.96222103,0.0002116,2]
[341241610,1730718441269,-774.96222103,0.0002116,2]
[341241611,1730718441289,-774.96222103,0.0002116,2]
[341241612,1730718441308,-774.96222103,0.0002116,2]
[341241613,1730718441333,-774.96222103,0.0002116,2]
[341241614,1730718441356,-774.96222103,0.0002116,2]
[341241615,1730718441376,-774.96222103,0.0002116,2]
[341241616,1730718441397,-774.96222103,0.0002116,2]
[341241617,1730718441419,-774.96222103,0.0002116,2]
[341241618,1730718441439,-774.96222103,0.0002116,2]
[341241619,1730718441459,-774.96222103,0.0002116,2]
[341241620,1730718441480,-774.96222103,0.0002116,2]
[341241621,1730718441499,-774.96222103,0.0002116,2]
[341241622,1730718441520,-774.96222103,0.0002116,2]
[341241623,1730718441540,-774.96222103,0.0002116,2]
[341241624,1730718441776,-774.96222103,0.0002116,2]
[341241625,1730718441797,-774.96222103,0.0002116,2]
[341241626,1730718441818,-345.24414697,0.0002116,2]
[341241654,1730718463797,299.16,0.00033695,30]
[341241655,1730718548142,-300.0,0.00020415,2]
[341241656,1730718548165,-300.0,0.00020415,2]
[341241657,1730718548188,-1223.29441818,0.00020416,2]
[341241658,1730718548211,-1223.29441818,0.00020416,2]
[341241659,1730718548232,-1223.29441818,0.00020416,2]
[341241660,1730718548254,-1223.29441818,0.00020416,2]
[341241661,1730718548276,-1223.29441818,0.00020416,2]
[341241662,1730718548298,-1223.29441818,0.00020416,2]
[341241663,1730718548320,-1223.29441818,0.00020416,2]
[341241664,1730718548343,-1223.29441818,0.00020416,2]
[341241665,1730718548365,-1223.29441818,0.00020416,2]
[341241666,1730718548386,-1223.29441818,0.00020416,2]
[341241667,1730718548411,-1223.29441818,0.00020416,2]
[341241668,1730718548432,-1223.29441818,0.00020416,2]
[341241669,1730718548454,-1223.29441818,0.00020416,2]
[341241670,1730718548476,-1223.29441818,0.00020416,2]
[341241671,1730718548497,-1223.29441818,0.00020416,2]
[341241672,1730718548518,-1223.29441818,0.00020416,2]
[341241673,1730718548541,-1223.29441818,0.00020416,2]
[341241674,1730718548564,-1223.29441818,0.00020416,2]
[341241675,1730718548586,-1223.29441818,0.00020416,2]
[341241676,1730718548611,-1223.29441818,0.00020416,2]
[341241677,1730718548632,-1223.29441818,0.00020416,2]
[341241678,1730718548655,-1223.29441818,0.00020416,2]
[341241679,1730718548677,-1223.29441818,0.00020416,2]
[341241680,1730718548699,-1223.29441818,0.00020416,2]
[341241681,1730718548721,-1223.29441818,0.00020416,2]
[341241682,1730718548743,-1223.29441818,0.00020416,2]
[341241683,1730718548765,-1223.29441818,0.00020416,2]
[341241684,1730718548787,-1223.29441818,0.00020416,2]
[341241685,1730718548808,-1223.29441818,0.00020416,2]
[341241686,1730718548829,-1223.29441818,0.00020416,2]
[341241687,1730718548850,-1223.29441818,0.00020416,2]
[341241688,1730718548956,-1223.29441818,0.00020416,2]
[341241689,1730718548980,-1223.29441818,0.00020416,2]
[341241690,1730718549002,-1223.29441818,0.00020416,2]
[341241691,1730718549024,-1223.29441818,0.00020416,2]
[341241692,1730718549045,-1223.29441818,0.00020416,2]
[341241693,1730718549065,-1223.29441818,0.00020416,2]
[341241694,1730718549086,-1223.29441818,0.00020416,2]
[341241695,1730718549107,-1223.29441818,0.00020416,2]
[341241696,1730718549128,-1223.29441818,0.00020416,2]
[341241697,1730718549148,-1223.29441818,0.00020416,2]
[341241698,1730718549171,-1223.29441818,0.00020416,2]
[341241699,1730718549193,-1223.29441818,0.00020416,2]
[341241700,1730718549214,-1223.29441818,0.00020416,2]
[341241701,1730718549235,-1223.29441818,0.00020416,2]
[341241702,1730718549259,-1223.29441818,0.00020416,2]
[341241703,1730718549280,-1223.29441818,0.00020416,2]
[341241704,1730718549301,-1223.29441818,0.00020416,2]
[341241705,1730718549324,-1223.29441818,0.00020416,2]
[341241706,1730718549350,-1223.29441818,0.00020416,2]
[341241707,1730718549373,-1223.29441818,0.00020416,2]
[341241708,1730718549397,-1223.29441818,0.00020416,2]
[341241709,1730718549423,-1223.29441818,0.00020416,2]
[341241710,1730718549448,-1223.29441818,0.00020416,2]
[341241711,1730718549473,-1223.29441818,0.00020416,2]
[341241712,1730718549499,-1223.29441818,0.00020416,2]
[341241713,1730718549527,-1223.29441818,0.00020416,2]
[341241714,1730718549551,-1223.29441818,0.00020416,2]
[341241715,1730718549572,-1223.29441818,0.00020416,2]
[341241716,1730718549594,-1223.29441818,0.00020416,2]
[341241717,1730718549619,-1223.29441818,0.00020416,2]
[341241718,1730718549639,-1223.29441818,0.00020416,2]
[341241719,1730718549661,-1223.29441818,0.00020416,2]
[341241720,1730718549684,-1223.29441818,0.00020416,2]
[341241721,1730718549706,-1223.29441818,0.00020416,2]
[341241722,1730718549727,-1553.19832217,0.00020416,2]
[341241723,1730718549748,-1553.19832217,0.00020416,2]
[341241724,1730718549770,-1553.19832217,0.00020416,2]
[341241725,1730718549792,-1553.19832217,0.00020416,2]
[341241726,1730718549813,-1553.19832217,0.00020416,2]
[341241727,1730718549835,-1553.19832217,0.00020416,2]
[341241728,1730718549856,-1553.19832217,0.00020416,2]
[341241729,1730718549877,-1553.19832217,0.00020416,2]
[341241730,1730718549899,-1553.19832217,0.00020416,2]
[341241731,1730718549920,-1553.19832217,0.00020416,2]
[341241732,1730718549942,-1553.19832217,0.00020416,2]
[341241733,1730718549963,-1553.19832217,0.00020416,2]
[341241734,1730718549986,-1553.19832217,0.00020416,2]
[341241735,1730718550007,-1004.48569725,0.00020416,2]
[341241738,1730718566108,-548.71262492,0.00020416,2]
[341241739,1730718566131,-1553.19832217,0.00020416,2]
[341241740,1730718566152,-1553.19832217,0.00020416,2]
[341241741,1730718566174,-1553.19832217,0.00020416,2]
[341241742,1730718566194,-1133.80038124,0.00020416,2]
[341241743,1730718574171,-419.39794093,0.00020416,2]
[341241744,1730718574206,-1553.19832217,0.00020416,2]
[341241745,1730718574240,-1553.19832217,0.00020416,2]
[341241746,1730718574274,-1553.19832217,0.00020416,2]
[341241747,1730718574309,-1553.19832217,0.00020416,2]
[341241748,1730718574346,-1553.19832217,0.00020416,2]
[341241749,1730718574378,-1553.19832217,0.00020416,2]
[341241750,1730718574409,-1553.19832217,0.00020416,2]
[341241751,1730718574442,-1553.19832217,0.00020416,2]
[341241752,1730718574474,-1553.19832208,0.00020416,2]
[341241753,1730718574505,-24900.0,0.00020417,2]
[341241754,1730718574535,-518.14493752,0.00020707,2]
[341241755,1730718574566,-152.0,0.00020807,2]
[341241756,1730718574598,-213.31454836,0.00021159,2]
[341241757,1730718574635,-151.0,0.00021161,2]
[341241758,1730718574667,-151.0,0.00021162,2]
[341241759,1730718574701,-151.0,0.00021162,2]
[341241760,1730718574733,-151.0,0.00021162,2]
[341241761,1730718574763,-153.676158,0.00021162,2]
[341241762,1730718574795,-151.0,0.00021162,2]
[341241763,1730718574826,-151.0,0.00021162,2]
[341241764,1730718575013,-151.0,0.00021162,2]
[341241765,1730718575049,-151.0,0.00021162,2]
[341241766,1730718575083,-451.038118,0.00021162,2]
[341241767,1730718575118,-154.897791,0.00021162,2]
[341241768,1730718575151,-451.038118,0.00021162,2]
[341241769,1730718575181,-151.0,0.00021162,2]
[341241770,1730718575215,-151.0,0.00021162,2]
[341241771,1730718575249,-191.968041,0.00021162,2]
[341241772,1730718575280,-191.968041,0.00021162,2]
[341241773,1730718575312,-151.0,0.00021162,2]
[341241774,1730718575347,-876.018132,0.00021162,2]
[341241775,1730718575379,-876.018132,0.00021162,2]
[341241776,1730718575408,-151.0,0.00021163,2]
[341241777,1730718575440,-151.0,0.00021163,2]
[341241778,1730718575473,-558.784175,0.00021163,2]
[341241779,1730718575508,-558.784175,0.00021163,2]
[341241780,1730718575542,-151.0,0.00021163,2]
[341241781,1730718575573,-151.587981,0.00021163,2]
[341241782,1730718575609,-151.0,0.00021163,2]
[341241783,1730718575643,-151.0,0.00021163,2]
[341241784,1730718575676,-153.50677,0.00021163,2]
[341241785,1730718575711,-151.0,0.00021163,2]
[341241786,1730718575744,-151.0,0.00021164,2]
[341241787,1730718575774,-151.0,0.00021164,2]
[341241788,1730718575804,-151.0,0.00021164,2]
[341241789,1730718575835,-151.0,0.00021164,2]
[341241790,1730718575866,-151.0,0.00021165,2]
[341241791,1730718575898,-151.0,0.00021165,2]
[341241792,1730718575930,-151.0,0.00021165,2]
[341241793,1730718575965,-204.621556,0.00021166,2]
[341241794,1730718575996,-151.0,0.00021166,2]
[341241795,1730718576029,-157.457613,0.00021166,2]
[341241796,1730718576061,-151.0,0.00021166,2]
[341241797,1730718576090,-152.369249,0.00021168,2]
[341241798,1730718576121,-151.0,0.00021168,2]
[341241799,1730718576152,-151.0,0.00021168,2]
[341241800,1730718576184,-151.0,0.00021168,2]
[341241801,1730718576216,-151.0,0.00021168,2]
[341241802,1730718576248,-151.0,0.00021168,2]
[341241803,1730718576280,-151.0,0.00021168,2]
[341241804,1730718576314,-152.613709,0.00021251,2]
[341241805,1730718576347,-426.390444,0.00021251,2]
[341241806,1730718576380,-426.390444,0.00021251,2]
[341241807,1730718576411,-151.0,0.00021251,2]
[341241808,1730718576444,-151.0,0.00021251,2]
[341241809,1730718576475,-151.0,0.00021251,2]
[341241810,1730718576506,-151.0,0.00021251,2]
[341241811,1730718576538,-292.296883,0.00021251,2]
[341241812,1730718576571,-292.296883,0.00021251,2]
[341241813,1730718576608,-928.989425,0.00021251,2]
[341241814,1730718576641,-928.989425,0.00021251,2]
[341241815,1730718576672,-501.18452618,0.00021382,2]
[341241816,1730718576705,-501.56504727,0.00021382,2]
[341241817,1730718576739,-500.0,0.00021382,2]
[341241818,1730718576782,-160.25743042,0.00021382,2]
[341241819,1730718576814,-500.0,0.00021382,2]
[341241820,1730718576846,-160.87760049,0.00021382,2]
[341241821,1730718576879,-500.0,0.00021382,2]
[341241822,1730718576909,-294.12071977,0.00021382,2]
[341241823,1730718576941,-500.0,0.00021382,2]
[341241824,1730718576972,-500.0,0.00021382,2]
[341241825,1730718577004,-500.0,0.00021382,2]
[341241826,1730718577036,-506.950413,0.00021478,2]
[341241827,1730718577067,-151.0,0.0002188,2]
[341241828,1730718577098,-438.26,0.00021907,3]
[341241829,1730718577129,-152.440373,0.00021917,2]
[341241830,1730718577161,-151.0,0.00021917,2]
[341241831,1730718577194,-151.0,0.00021917,2]
[341241832,1730718577226,-151.0,0.00021917,2]
[341241833,1730718577259,-151.0,0.00021917,2]
[341241834,1730718577291,-161.860257,0.00021917,2]
[341241835,1730718577326,-558.784175,0.00021917,2]
[341241836,1730718577360,-558.784175,0.00021917,2]
[341241837,1730718577391,-297.831633,0.00021917,2]
[341241838,1730718577422,-151.0,0.00021917,2]
[341241839,1730718577453,-151.0,0.00021917,2]
[341241840,1730718577484,-152.7694,0.00021917,2]
[341241841,1730718577515,-151.0,0.00021917,2]
[341241842,1730718577546,-151.0,0.00021917,2]
[341241843,1730718577577,-151.0,0.00021917,2]
[341241844,1730718577611,-671.127074,0.00021917,2]
[341241845,1730718577643,-155.206672,0.00021917,2]
[341241846,1730718577675,-151.0,0.00021917,2]
[341241847,1730718577828,-151.0,0.00021917,2]
[341241848,1730718577862,-451.038118,0.00021917,2]
[341241849,1730718577895,-451.038118,0.00021917,2]
[341241850,1730718577930,-151.0,0.00021917,2]
[341241851,1730718577961,-151.0,0.00021917,2]
[341241852,1730718577994,-191.968041,0.00021917,2]
[341241853,1730718578026,-191.968041,0.00021917,2]
[341241854,1730718578059,-151.0,0.00021917,2]
[341241855,1730718578092,-426.390444,0.00021917,2]
[341241856,1730718578126,-426.390444,0.00021917,2]
[341241857,1730718578158,-151.0,0.00021917,2]
[341241858,1730718578192,-151.0,0.00021917,2]
[341241859,1730718578224,-151.0,0.00021917,2]
[341241860,1730718578255,-157.316678,0.00021917,2]
[341241861,1730718578290,-5000.0,0.00021917,2]
[341241862,1730718578323,-5000.0,0.00021917,2]
[341241863,1730718578354,-5000.0,0.00021917,2]
[341241864,1730718578385,-5000.0,0.00021917,2]
[341241865,1730718578420,-5000.0,0.00021917,2]
[341241866,1730718578455,-5000.0,0.00021917,2]
[341241867,1730718578490,-186.25715341,0.00021917,2]
[341241868,1730718578524,-151.0,0.00021917,2]
[341241869,1730718578556,-876.018132,0.00021917,2]
[341241870,1730718578588,-292.296883,0.00021917,2]
[341241871,1730718578619,-876.018132,0.00021917,2]
[341241872,1730718578648,-292.296883,0.00021917,2]
[341241873,1730718578685,-928.989425,0.00021917,2]
[341241874,1730718578715,-928.989425,0.00021917,2]
[341241875,1730718578747,-151.0,0.00021917,2]
[341241876,1730718578777,-153.625073,0.00021917,2]
[341241877,1730718578807,-531.871717,0.00021917,2]
[341241878,1730718578839,-531.871717,0.00021917,2]
[341241879,1730718578871,-531.871717,0.00021917,2]
[341241880,1730718578904,-531.871717,0.00021917,2]
[341241881,1730718578938,-208.940048,0.00021917,2]
[341241882,1730718578971,-208.940048,0.00021917,2]
[341241883,1730718579004,-173.43219,0.00021918,2]
[341241884,1730718579035,-173.43219,0.00021918,2]
[341241885,1730718579067,-173.43219,0.00021918,2]
[341241886,1730718579099,-173.43219,0.00021918,2]
[341241887,1730718579130,-171.919837,0.00021918,2]
[341241888,1730718579161,-151.0,0.00021918,7]
[341241889,1730718579194,-151.0,0.00021918,7]
[341241890,1730718579224,-416.67841547,0.00021973,2]
[341241891,1730718579255,-502.77617363,0.00021973,2]
[341241892,1730718579290,-604.84714996,0.00021973,2]
[341241893,1730718579321,-150.52531909,0.00021973,2]
[341241894,1730718579352,-542.76806701,0.00021973,2]
[341241895,1730718579382,-500.0,0.00021973,2]
[341241896,1730718579413,-500.0,0.00021973,2]
[341241897,1730718579452,-260.80204799,0.00021973,2]
[341241898,1730718579484,-500.0,0.00021973,2]
[341241899,1730718579515,-500.0,0.00021973,2]
[341241900,1730718579546,-500.0,0.00021973,2]
[341241901,1730718579577,-500.0,0.00021973,2]
[341241902,1730718579613,-151.0,0.00021973,7]
[341241903,1730718579644,-150.0,0.00022,30]
[341241904,1730718579677,-500.0,0.00022007,2]
[341241905,1730718579708,-151.0,0.00022067,7]
[341241906,1730718579738,-151.0,0.00022068,7]
[341241907,1730718579770,-151.0,0.00022068,7]
[341241908,1730718579800,-151.0,0.00022068,7]
[341241909,1730718579830,-173.43219,0.00022068,7]
[341241910,1730718579860,-173.43219,0.00022068,7]
[341241911,1730718579891,-671.127074,0.00022068,7]
[341241912,1730718579923,-292.215414,0.00022167,7]
[341241913,1730718579953,-292.215414,0.00022167,7]
[341241914,1730718579984,-151.0,0.00022167,7]
[341241915,1730718580014,-558.784175,0.00022167,7]
[341241916,1730718580044,-558.784175,0.00022167,7]
[341241917,1730718580074,-151.0,0.00022167,7]
[341241918,1730718580105,-151.0,0.00022167,7]
[341241919,1730718580135,-151.0,0.00022167,7]
[341241920,1730718580169,-151.0,0.00022167,7]
[341241921,1730718580200,-191.968041,0.00022167,7]
[341241922,1730718580231,-191.968041,0.00022167,7]
[341241923,1730718580263,-151.0,0.00022167,7]
[341241924,1730718580294,-876.018132,0.00022167,7]
[341241925,1730718580326,-876.018132,0.00022167,7]
[341241926,1730718580358,-151.0,0.00022167,7]
[341241927,1730718580489,-188.230433,0.00022167,7]
[341241928,1730718580518,-151.842247,0.00022167,7]
[341241929,1730718580550,-211.551662,0.00022167,7]
[341241930,1730718580582,-211.551662,0.00022167,7]
[341241931,1730718580616,-151.0,0.00022167,7]
[341241932,1730718580651,-292.215414,0.00022168,7]
[341241933,1730718580684,-292.215414,0.00022168,7]
[341241934,1730718580714,-152.463215,0.00022168,7]
[341241935,1730718580744,-151.0,0.00022169,7]
[341241936,1730718580779,-151.0,0.0002217,7]
[341241937,1730718580809,-160.722672,0.0002217,7]
[341241938,1730718580841,-151.0,0.0002217,7]
[341241939,1730718580873,-151.0,0.0002217,7]
[341241940,1730718580904,-151.0,0.0002217,7]
[341241941,1730718580936,-151.0,0.0002217,7]
[341241942,1730718580969,-151.0,0.0002217,7]
[341241943,1730718581000,-451.038118,0.0002217,7]
[341241944,1730718581031,-451.038118,0.0002217,7]
[341241945,1730718581061,-213.41250957,0.00022173,2]
[341241946,1730718581090,-500.0,0.00022173,2]
[341241947,1730718581119,-501.78865778,0.00022173,2]
[341241948,1730718581148,-326.15660175,0.00022173,2]
[341241949,1730718581180,-502.51838893,0.00022173,2]
[341241950,1730718581210,-151.0,0.00022173,7]
[341241951,1730718581239,-151.0,0.00022173,7]
[341241952,1730718581269,-185.967272,0.00022173,7]
[341241953,1730718581301,-426.390444,0.00022173,7]
[341241954,1730718581332,-426.390444,0.00022173,7]
[341241955,1730718581364,-151.0,0.00022173,7]
[341241956,1730718581394,-151.0,0.00022173,7]
[341241957,1730718581424,-151.0,0.00022173,7]
[341241958,1730718581454,-292.296883,0.00022173,7]
[341241959,1730718581484,-292.296883,0.00022173,7]
[341241960,1730718581515,-928.989425,0.00022173,7]
[341241961,1730718581545,-928.989425,0.00022173,7]
[341241962,1730718581575,-531.871717,0.00022173,7]
[341241963,1730718581610,-531.871717,0.00022173,7]
[341241964,1730718581641,-208.940048,0.00022173,7]
[341241965,1730718581675,-178.650918,0.00022196,2]
[341241966,1730718581706,-420.0,0.00022221,2]
[341241967,1730718581738,-500.0,0.00022316,2]
[341241968,1730718581769,-420.0,0.00022457,2]
[341241969,1730718581799,-171.919837,0.00022559,2]
[341241970,1730718581829,-1000.0,0.00022752,2]
[341241971,1730718581861,-500.0,0.00022752,2]
[341241972,1730718581891,-527.3977744,0.00022752,2]
[341241973,1730718581924,-1000.0,0.00022752,2]
[341241974,1730718581960,-501.27550894,0.00022752,2]
[341241975,1730718581995,-1000.0,0.00022752,2]
[341241976,1730718582026,-510.74859197,0.00022752,2]
[341241977,1730718582058,-500.0,0.00022847,2]
[341241978,1730718582089,-171.919837,0.000232,2]
[341241979,1730718582120,-876.52,0.00023277,3]
[341241980,1730718582149,-500.0,0.00023342,2]
[341241981,1730718582181,-500.7448973,0.00023342,2]
[341241982,1730718582212,-503.76585858,0.00023377,2]
[341241983,1730718582244,-292.215414,0.00023542,7]
[341241984,1730718582275,-292.215414,0.00023542,7]
[341241985,1730718582306,-151.0,0.00023542,7]
[341241986,1730718582336,-151.0,0.00023542,7]
[341241987,1730718582365,-151.0,0.00023542,7]
[341241988,1730718582394,-151.0,0.00023542,7]
[341241989,1730718582422,-558.784175,0.00023542,7]
[341241990,1730718582454,-558.784175,0.00023542,7]
[341241991,1730718582482,-151.0,0.00023542,7]
[341241992,1730718582512,-173.43219,0.00023542,7]
[341241993,1730718582541,-173.43219,0.00023542,7]
[341241994,1730718582571,-671.127074,0.00023542,7]
[341241995,1730718582601,-151.0,0.00023542,7]
[341241996,1730718582635,-241.247042,0.00023542,7]
[341241997,1730718582666,-151.0,0.00023542,7]
[341241998,1730718582697,-157.408712,0.00023542,7]
[341241999,1730718582726,-191.968041,0.00023542,7]
[341242000,1730718582757,-191.968041,0.00023542,7]
[341242001,1730718582786,-151.0,0.00023542,7]
[341242002,1730718582816,-151.0,0.00023542,7]
[341242003,1730718582948,-876.018132,0.00023542,7]
[341242004,1730718582980,-876.018132,0.00023542,7]
[341242005,1730718583011,-500.0,0.00023542,2]
[341242006,1730718583042,-151.0,0.00023685,7]
[341242007,1730718583073,-151.0,0.00023685,7]
[341242008,1730718583105,-151.0,0.00023685,7]
[341242009,1730718583136,-451.038118,0.00023685,7]
[341242010,1730718583172,-451.038118,0.00023685,7]
[341242011,1730718583204,-151.0,0.00023685,7]
[341242012,1730718583235,-211.551662,0.00023685,7]
[341242013,1730718583267,-211.551662,0.00023685,7]
[341242014,1730718583300,-151.0,0.00023685,7]
[341242015,1730718583333,-410.42600659,0.00023685,2]
[341242016,1730718583363,-194.496469,0.00023836,2]
[341242017,1730718583394,-171.919837,0.00023841,2]
[341242018,1730718583424,-150.0,0.00024,2]
[341242019,1730718583459,-587.0,0.00024185,2]
[341242020,1730718583492,-171.919837,0.00024482,2]
[341242021,1730718583524,-150.112235,0.000245,9]
[341242022,1730718583558,-155.28869,0.00024656,7]
[341242023,1730718583589,-200.0,0.00024658,2]
[341242024,1730718583622,-151.0,0.00024658,7]
[341242025,1730718583655,-151.0,0.00024658,7]
[341242026,1730718583690,-426.390444,0.00024658,7]
[341242027,1730718583724,-426.390444,0.00024658,7]
[341242028,1730718583758,-151.0,0.00024658,7]
[341242029,1730718583793,-249.610022,0.00024658,7]
[341242030,1730718583826,-151.0,0.00024658,7]
[341242031,1730718583859,-292.296883,0.00024658,7]
[341242032,1730718583891,-292.296883,0.00024658,7]
[341242033,1730718583924,-928.989425,0.00024658,7]
[341242034,1730718583956,-928.989425,0.00024658,7]
[341242035,1730718583987,-500.0,0.00024658,2]
[341242036,1730718584019,-333.50793803,0.00024658,2]
[341242047,1730718638747,-500.0,0.00021382,2]
[341242048,1730718638759,-518.14493749,0.00021755,2]
[341242049,1730718638770,-300.0,0.00021916,2]
[341242050,1730718638782,-300.0,0.00021916,2]
[341242051,1730718638793,-208.940048,0.00021917,2]
[341242052,1730718638805,-208.940048,0.00021917,2]
[341242053,1730718638817,-570.458013,0.00021917,2]
[341242054,1730718638827,-570.458013,0.00021917,2]
[341242055,1730718638839,-151.0,0.00021917,2]
[341242056,1730718638850,-104.58033277,0.00021917,2]
[341242061,1730718640505,-46.41966723,0.00021917,2]
[341242062,1730718640516,-570.458013,0.00021917,2]
[341242063,1730718640528,-570.458013,0.00021917,2]
[341242064,1730718640539,-151.0,0.00022167,7]
[341242065,1730718640551,-208.940048,0.00022173,7]
[341242066,1730718640563,-570.458013,0.00022173,7]
[341242067,1730718640574,-51.35855519,0.00022173,7]
[341242069,1730718644720,-99.64144481,0.00022173,7]
[341242070,1730718644743,-277.25855519,0.00022173,7]
[341242113,1730718646418,-293.19945781,0.00022173,7]
[341242115,1730718646428,-206.80054219,0.00022804,2]
[341242132,1730718709157,166.954343,0.00013973,2]
[341242133,1730719154674,326.9955125,0.0001,2]
[341242134,1730719325960,186.220986,0.00013973,2]
[341242135,1730719327127,157.627262,0.00019178,2]
[341242136,1730719395471,205.5256359,0.00018325,2]
[341242137,1730719396221,686.2968943,0.0001929,2]
[341242138,1730719464568,250.0,0.0001929,2]
[341242141,1730719547829,24900.0,0.00019292,2]
[341242145,1730719628128,-324.427692,0.00020221,2]
[341242146,1730719628159,-324.427692,0.00020227,2]
[341242147,1730719628188,-324.427692,0.00020232,2]
[341242148,1730719628211,-324.427692,0.00020237,2]
[341242149,1730719628235,-8.66351789,0.00020243,2]
[341242150,1730719646124,-315.76417411,0.00020243,2]
[341242151,1730719646147,-324.427692,0.00020248,2]
[341242152,1730719646170,-324.427692,0.00020253,2]
[341242153,1730719646192,-324.427692,0.00020259,2]
[341242154,1730719646214,-26.8024287,0.00020264,2]
[341242155,1730719649114,-297.6252633,0.00020264,2]